Cogmind - Beta 16 @@@ ROGUE MODE // 2025.11.10 @ 14:35:18 Player: Demo Result: Destroyed by H-88 Terminator with KE Penetrator Performance ------------- Evolutions (8) 4000 Regions Visited (18) 3600 Robots Destroyed (206) 1030 Value Destroyed (11289) 11289 Prototype IDs (31) 620 Alien Tech Used (3) 600 Bonus (5996) 5996 TOTAL SCORE: 27135 Bonus ------- Triggered High Security 500 High Alert Combat Kills 3023 Follower Combat Kills 373 Entered DSFs 500 Registered with UFD 300 Met Optimus in HQ 500 Met Zhirov 300 Scanned by Researcher 500 Cogmind --------- Core Integrity 0/1450 Matter 119/300 Energy 98/100 System Corruption 27% Temperature Cool (0) Movement Core (50) Location -2/Protoforge Parts ------- > --- POWER (2) -------- (None) > --- PROPULSION (5) --- (None) > --- UTILITY (11) ----- Advanced Signal Interpreter > --- WEAPON (5) ------- (None) > --- INVENTORY (5) ---- Phase Gun Quantum Rifle Peak State ------------ > --- POWER ------------ Light Quantum Reactor Light Quantum Reactor > --- PROPULSION ------- Improved Heavy Treads Advanced Heavy Siege Treads > --- UTILITY ---------- Advanced Cooling System High-capacity Storage Unit Core Analyzer Improved Armor Integrity Analyzer Matter Filter Advanced Kinecellerator Advanced Weapon Cycler Phase Armor Advanced Thermal Shield Advanced Hardlight Generator > --- WEAPON ----------- Railgun Railgun Helical Railgun Omega Cannon > --- INVENTORY -------- Particle Reactor Light Quantum Reactor Matter Drive Advanced Power Amplifier Experimental Heat Sink Advanced Cooling System Advanced Cooling System Experimental Cooling System Advanced Coolant Injector Improved Focal Shield Subatomic Replicator Terrabomb Phase Gun Phase Gun Nova Cannon Enhanced Nova Cannon Railgun Railgun [Rating: 195] Favorites ----------- Power Reinforced Antimatter Reactor Engine Improved Ion Engine Power Core Neutrino Core Reactor Reinforced Antimatter Reactor Propulsion Medium Treads Treads Medium Treads Leg Thunder Leg Wheel Wheel Hover Unit Improved Antigrav System Flight Unit Improved Q-thruster Utility Improved Targeting Computer Device Advanced Heat Sink Storage High-capacity Storage Unit Processor Improved Targeting Computer Hackware Hacking Suite Protection Layered Heavy Armor Plating Artifact Phase Armor Weapon Railgun Energy Gun Dispersion Rifle Energy Cannon Neutron Cannon Ballistic Gun Railgun Ballistic Cannon Heavy Gauss Cannon Launcher Grenade Launcher Special Weapon CPS Tube Slashing Weapon Scythe Build | -11 -10 -10 -7 -7 -5 -5 -5 -5 -4 -4 -4 -4 -3 -3 -3 -2 -2 -2 ------- Run | Yrd Mat Sub Rec Scr Fac Was Fac DSF Fac Upp Upp Zhi Pro Res Tes Res Qua Frg Slots Evolved 16 | . . . . . 10 . . . 2 . . . . 2 . 2 . . Power 1 | . . . . . . . . . . . . . . 1 . . . . Propulsion 3 | . . . . . 3 . . . . . . . . . . . . . Utility 9 | . . . . . 7 . . . . . . . . 1 . 1 . . Weapon 3 | . . . . . . . . . 2 . . . . . . 1 . . Parts Attached 193 | 3 4 2 1 2 29 2 10 2 16 7 8 6 2 13 3 43 35 5 Power 18 | . . 1 . . 2 . 1 . 1 1 . 1 . 1 . 3 7 . Engine 3 | . . 1 . . 1 . . . . . . . . . . 1 . . Core 2 | . . . . . 1 . 1 . . . . . . . . . . . Reactor 13 | . . . . . . . . . 1 1 . 1 . 1 . 2 7 . Propulsion 53 | 2 . . 1 1 12 2 5 2 2 1 3 1 . 3 . 12 5 1 Treads 15 | 2 . . . . . . 4 . . . 1 . . . . 4 3 1 Leg 13 | . . . . 1 2 . 1 2 2 1 2 . . . . 2 . . Wheel 18 | . . . 1 . 9 2 . . . . . . . . . 4 2 . Hover 6 | . . . . . 1 . . . . . . 1 . 3 . 1 . . Flight 1 | . . . . . . . . . . . . . . . . 1 . . Utility 69 | . 2 . . . 10 . 1 . 8 2 3 2 1 5 . 17 16 2 Device 37 | . . . . . 5 . . . 6 1 1 1 1 2 . 9 10 1 Storage 5 | . 1 . . . 2 . . . . . . . . . . 2 . . Processor 12 | . 1 . . . . . 1 . 1 1 2 . . 1 . 4 . 1 Hackware 3 | . . . . . . . . . 1 . . . . 2 . . . . Protection 11 | . . . . . 3 . . . . . . 1 . . . 2 5 . Artifact 1 | . . . . . . . . . . . . . . . . . 1 . Weapon 53 | 1 2 1 . 1 5 . 3 . 5 3 2 2 1 4 3 11 7 2 Energy Gun 25 | . . . . . 1 . 2 . 4 1 2 2 . 4 . 6 1 2 Energy Cannon 6 | . . 1 . . 2 . . . . . . . . . 2 1 . . Ballistic Gun 14 | 1 1 . . . . . . . 1 1 . . 1 . . 3 6 . Ballistic Cannon 3 | . . . . . . . 1 . . 1 . . . . 1 . . . Launcher 3 | . 1 . . . 2 . . . . . . . . . . . . . Special Weapon 1 | . . . . . . . . . . . . . . . . 1 . . Impact Weapon . | . . . . . . . . . . . . . . . . . . . Slashing Weapon 1 | . . . . 1 . . . . . . . . . . . . . . Piercing Weapon . | . . . . . . . . . . . . . . . . . . . Special Melee Weapon . | . . . . . . . . . . . . . . . . . . . Unidentified Prototypes 19 | . . . . . 2 . 2 . . . . 5 1 1 2 1 5 . Parts Lost 71 | . . 4 1 . 7 1 . . 7 1 1 . 15 1 13 4 13 3 Power 5 | . . 1 . . 1 . . . 1 . . . 1 . 1 . . . Propulsion 23 | . . 1 1 . 4 1 . . 2 . . . 4 . 3 2 4 1 Utility 26 | . . . . . 2 . . . 3 . . . 6 1 7 . 6 1 Weapon 17 | . . 2 . . . . . . 1 1 1 . 4 . 2 2 3 1 Highest Loss Streak 8 | . . 3 4 . 2 1 . . 4 1 1 . 7 1 8 1 5 2 To Critical Strikes 3 | . . . . . . . . . . . . . 2 . 1 . . . Average Backups 9 | . 3 4 4 4 12 10 4 5 5 4 4 4 4 3 1 10 17 1 Power . | . . . . . . . . . . . . . . 1 . . 1 . Propulsion 1 | . . . . . 1 2 . 2 2 1 2 1 . . . 1 1 . Utility 4 | . 2 3 3 2 6 4 . . . . . 1 2 1 . 5 7 . Weapon 2 | . . . . 2 3 3 2 2 2 3 2 1 . 1 . 1 4 1 Tool/Special . | . . . . . . . . . . . . . . . . . . . Unused Backups 53 | . 1 . 1 2 13 8 1 . . . 1 1 . . . 5 20 . Power 5 | . . . . . 1 . . . . . . . . . . 2 2 . Propulsion 5 | . . . . . . 1 1 . . . 1 1 . . . 1 . . Utility 31 | . 1 . 1 2 10 5 . . . . . . . . . 2 10 . Weapon 8 | . . . . . 2 1 . . . . . . . . . . 5 . Tool/Special 4 | . . . . . . 1 . . . . . . . . . . 3 . Average Slot Usage (%) 73 | . 70 72 28 44 73 59 55 64 68 92 100 82 88 41 58 73 83 10 Reactor 3 | . . . . . . . . . 1 4 5 5 4 1 3 5 7 . Treads 8 | . 28 28 2 . . . 16 14 8 5 5 4 4 . . 9 12 3 Leg 5 | . . . . 8 . . 3 13 16 21 21 21 15 . . 1 . . Wheel 4 | . . . 9 14 24 27 1 . . . . . . . . 2 . . Device 13 | . . . . . 7 9 . . 8 21 26 24 26 7 8 11 23 2 Storage 2 | . 8 4 . . 5 2 . . . . . . . . . 2 3 . Processor 10 | . 10 14 14 14 5 2 2 5 6 13 16 21 16 9 13 18 9 2 Protection 3 | . . . . . 11 2 10 11 5 . . . . . . 2 3 . Energy Gun 5 | . . . . . . . 9 5 8 10 10 4 13 5 7 9 3 1 Energy Cannon 1 | . . 5 1 . 3 6 . . . . . . . . 1 2 . . Ballistic Gun 6 | . 23 11 . . . . . . 1 8 5 . 1 2 1 3 15 . Peak Build Rating 195 | 3 6 8 4 12 75 58 52 57 104 101 103 104 105 97 117 153 195 41 Average Rating 87 | 2 5 5 2 8 59 33 37 55 72 94 100 79 92 48 78 112 159 18 On Entrance 45 | . 3 5 5 3 12 58 5 52 57 83 101 99 104 24 97 13 139 3 Avg Prop Armor Cover (%) 17 | 35 31 29 22 27 20 35 9 13 13 7 6 8 7 24 . 8 2 33 Naked Turns 61 | . . . . . . . . . . . . . . . . . 44 17 Heaviest Build 174 | 1 22 34 . 2 156 128 25 28 44 55 55 49 51 36 57 137 174 13 Greatest Support 183 | 3 3 40 3 3 78 78 108 108 78 78 82 82 82 48 48 144 183 28 Greatest Overweight (x) 7 | . 7 2 . . 2 1 1 . . . . . 2 1 1 3 5 . Average Overweight (x) . | . . . . . 1 . . . . . . . . . . . . . Largest Inventory Capacity 25 | 5 15 15 5 5 25 25 5 5 5 5 5 5 5 5 5 20 20 5 Average Capacity 11 | 5 10 8 5 5 15 15 5 5 5 5 5 5 5 5 5 13 19 5 Most Carried 20 | . 5 5 5 5 17 17 5 5 5 5 5 5 5 5 4 20 20 4 Average Carried 9 | . 3 4 4 4 13 10 4 4 4 4 4 4 4 3 2 11 18 2 Final Capacity 25 | 5 5 15 5 5 25 5 5 5 5 5 5 5 5 5 5 20 5 5 Final Carried 20 | . 5 4 4 5 17 3 5 5 5 5 5 5 5 2 4 20 3 2 Scrap Suit Usage (%) 14 | . . . . . . . . . . . . . . . . 27 47 . Parts Cannibalized 38 | . . . . . . . . . . . . . . . . 2 36 . Class Distribution -------------------- 29% | Scavenger-Gunner 26% | Mutant 22% | Scavenger-Tank 16% | Scavenger-Mutant Dominant Class ---------------- Mutant | -10/Materials Mutant | -10/Subcaves Mutant | -7/Recycling Mutant | -7/Scraptown Scavenger-Mutant | -5/Factory Scavenger-Mutant | -5/Waste Mutant | -5/Factory Mutant | -5/DSF Mutant | -4/Factory Scavenger-Gunner | -4/Upper Caves Scavenger-Gunner | -4/Upper Caves Scavenger-Mutant | -4/Zhirov Scavenger-Gunner | -3/Proximity Caves Hacker-Mutant | -3/Research Hacker-Gunner | -3/Testing Scavenger-Gunner | -2/Research Scavenger-Tank | -2/Quarantine Mutant | -2/Protoforge Resources | -11 -10 -10 -7 -7 -5 -5 -5 -5 -4 -4 -4 -4 -3 -3 -3 -2 -2 -2 ----------- Run | Yrd Mat Sub Rec Scr Fac Was Fac DSF Fac Upp Upp Zhi Pro Res Tes Res Qua Frg Matter Collected 6904 | 122 11 144 159 119 530 . 36 5 518 177 286 . 300 19 364 1157 2809 148 Remotely . | . . . . . . . . . . . . . . . . . . . Salvage Created 13014 | . 15 45 . . 1642 . 31 75 377 57 428 . 694 19 87 3077 6394 73 Parts 554 | . 8 5 . . 72 . . 3 18 . 18 . 21 3 6 100 298 2 Haulers Intercepted 5 | . . . . . 1 . . . 1 . . . . . . 2 1 . Recyclers Shooed 7 | . . . . . 3 . . . . . . . . . . 3 1 . Parts Field Recycled . | . . . . . . . . . . . . . . . . . . . Retrieved Matter . | . . . . . . . . . . . . . . . . . . . Parts Self-Destructed 54 | . . 6 . . . . . . . 6 20 . 22 . . . . . Prevented 7 | . . . . . . . . . . 7 . . . . . . . . Parts Restored . | . . . . . . . . . . . . . . . . . . . Kills | -11 -10 -10 -7 -7 -5 -5 -5 -5 -4 -4 -4 -4 -3 -3 -3 -2 -2 -2 ------- Run | Yrd Mat Sub Rec Scr Fac Was Fac DSF Fac Upp Upp Zhi Pro Res Tes Res Qua Frg Combat Hostiles Destroyed 150 | . 3 3 . . 15 . . 1 7 1 9 . 12 . . 25 72 2 Melee 5 | . . . . . 4 . . . 1 . . . . . . . . . Guns 104 | . . 2 . . . . . . 2 1 8 . 11 . . 13 66 1 Cannons 24 | . . 1 . . 1 . . 1 1 . 1 . 1 . . 11 6 1 AOE 16 | . 3 . . . 10 . . . 3 . . . . . . . . . Classes Destroyed 19 | . 1 1 . . 10 . . . . . . . 2 . 1 1 3 . Worker 13 | . . . . . 5 . 2 . . . . . . . 1 1 4 . Builder 10 | . . . . . 3 . . . . . . . . . . . 7 . Tunneler 3 | . . . . . 1 . . . . . . . . 1 . 1 . . Hauler 5 | . . . . . 1 . . . 1 . . . . . . 2 1 . Recycler 15 | . . . . . 6 . . . . . . . . . . 6 3 . Operator 3 | . . . . . 1 . . . 1 . . . . . . . 1 . Watcher 1 | . . . . . . . . . . . . . . . . . 1 . Swarmer 18 | . 3 2 . . . . . . . . 6 . 2 . . . 5 . Saboteur 1 | . . . . . . . . . . . . . . . . . 1 . Grunt 60 | . . . . . 7 . . . 4 . 3 . 4 . . 9 33 . Brawler 3 | . . . . . . . . . . . . . 1 . . . 2 . Duelist 3 | . . . . . . . . . . . . . 1 . . . 2 . Researcher 6 | . . . . . . . . . . . . . . . 1 . 5 . Sentry 15 | . . . . . 1 . . 1 . . . . . . . 6 5 2 Hunter 16 | . . . . . 2 . . . 1 . . . 3 . . 2 8 . Programmer 30 | . . . . . 5 . . . 2 1 . . 1 . . 7 14 . Q-Series 2 | . . . . . . . . . . . . . . . . . 2 . Behemoth 1 | . . . . . . . . . . . . . . . . 1 . . Subdweller 1 | . . 1 . . . . . . . . . . . . . . . . Decomposer 1 | . . . . . . . . . . . . . 1 . . . . . Best Kill Streak 13 | . 3 2 . . 8 . 1 1 4 1 6 . 8 1 1 7 13 1 Combat Bots Only 9 | . 3 2 . . 5 . . 1 4 1 6 . 8 . . 7 9 1 Max Kills in Single Turn 3 | . 3 1 . . 3 . 1 1 2 1 1 . 1 1 1 2 3 1 Gunslinging 1 | . . . . . . . . . . . . . . . . . 1 . Exploded 3 | . 3 . . . 3 . . . 2 . . . . . . . . . Melee 1 | . . . . . 1 . . . 1 . . . . . . . . . Uniques/NPCs Destroyed . | . . . . . . . . . . . . . . . . . . . Combat | -11 -10 -10 -7 -7 -5 -5 -5 -5 -4 -4 -4 -4 -3 -3 -3 -2 -2 -2 -------- Run | Yrd Mat Sub Rec Scr Fac Was Fac DSF Fac Upp Upp Zhi Pro Res Tes Res Qua Frg Hostile Shots Fired 1754 | . 16 54 54 . 174 1 . 40 204 39 31 . 168 28 143 148 606 48 Missed 577 | . 5 14 27 . 43 . . 23 111 26 14 . 65 13 45 51 128 12 Hits 1177 | . 11 40 27 . 131 1 . 17 93 13 17 . 103 15 98 97 478 36 Melee 18 | . . . . . . 1 . . . . . . 1 . . . 16 . Projectile 1159 | . 11 40 27 . 131 . . 17 93 13 17 . 102 15 98 97 462 36 AOE 1 | . . . . . 1 . . . . . . . . . . . . . Critical Strikes 50 | . . . . . 5 . . . 8 . . . 3 1 3 4 21 5 Actively Blocked 2 | . . . . . . . . . . . . . . . . . 2 . Part Disruptions 2 | . . . . . . . . 1 . . . . . . . 1 . . Damage Taken 20286 | . 97 401 203 . 2929 56 . 263 1714 257 255 . 1831 291 1925 2213 6758 1093 Core 3448 | . 18 47 158 . 192 56 . . 38 40 . . 333 193 910 121 648 694 Absorbed by Shields 3008 | . . . . . . . . . . . . . . . . . 3008 . Reduced by Siege Mode 453 | . . . . . . . . . . . . . . . . 6 447 . Redirected to Core 23 | . . . . . . . . . . . . . . . . . 23 . Redirected to Shielding 118 | . . . . . . . . . . . . . . . . . 118 . Ignored by Resistances 1462 | . . . . . . . . . 88 . 24 . 156 . . 109 1085 . Regen/Repaired (Parts) 328 | . . . . . . . . . . . . . . . . 20 308 . Core Remaining (%) 51 | 100 . . . 10 . . . 75 . . . . 59 . 15 . . . Volleys Fired 418 | . 1 18 . . 29 4 4 8 33 7 15 . 38 7 11 69 155 19 Largest 5 | . 1 2 . . 2 1 2 2 4 3 4 . 4 4 4 5 5 2 Hottest 450 | . 30 100 . . 180 90 77 102 294 148 257 . 315 243 386 450 397 182 Shots Fired 1305 | . 1 22 . . 31 3 9 16 58 20 56 . 107 12 22 266 662 20 Gun 1078 | . . 13 . . . . 6 8 46 20 41 . 77 12 11 213 620 11 Cannon 209 | . . 3 . . 22 3 3 8 12 . 15 . 30 . 11 52 41 9 Launcher 16 | . 1 6 . . 9 . . . . . . . . . . . . . Special 2 | . . . . . . . . . . . . . . . . 1 1 . Kinetic 729 | . . 13 . . . . 3 8 21 14 29 . 39 6 2 72 513 9 Thermal 533 | . . 3 . . 22 3 6 . 28 6 27 . 68 4 14 193 148 11 Explosive 16 | . 1 6 . . 9 . . . . . . . . . . . . . Electromagnetic 25 | . . . . . . . . 8 9 . . . . 2 6 . . . Robot Hit Streak 36 | . 1 12 . . 9 . 7 15 16 9 7 . 13 5 17 28 36 17 Robot Miss Streak 6 | . . 1 . . 1 . 2 1 4 6 3 . 5 5 . 5 5 2 Penetration Max 2 | . . . . . . . . . . . . . 1 . . 1 2 . Secondary Targets 28 | . . . . . . . . . . . . . 1 . . 1 26 . Max Gunslinging Chain 1 | . . . . . . . . . . . . . 1 . . 1 1 . Shots Hit Robots 878 | . 1 13 . . 71 . 7 15 25 13 23 . 67 3 17 151 459 13 Core Hits 431 | . 3 5 . . 40 . 3 4 21 2 16 . 29 2 9 71 223 3 Critical Kills 14 | . . . . . . . . . . . 1 . 4 1 . . 8 . Critical Parts Destroyed 13 | . . . . . . . . . 2 . 1 . 3 . . 1 6 . Critical Strikes 51 | . . 1 . . 4 . 1 2 3 . 2 . 11 1 1 9 16 . Burn 4 | . . . . . . . . . 1 . . . . . . 3 . . Destroy 29 | . . 1 . . . . . . 2 . 2 . 7 1 . 2 14 . Blast 14 | . . . . . . . 1 2 . . . . 4 . 1 4 2 . Sever 4 | . . . . . 4 . . . . . . . . . . . . . Melee Attacks 76 | . . . . . 74 2 . . . . . . . . . . . . Impact . | . . . . . . . . . . . . . . . . . . . Slashing 76 | . . . . . 74 2 . . . . . . . . . . . . Piercing . | . . . . . . . . . . . . . . . . . . . Sneak Attacks 18 | . . . . . 18 . . . . . . . . . . . . . Combat Hostiles . | . . . . . . . . . . . . . . . . . . . Follow-up Attacks . | . . . . . . . . . . . . . . . . . . . Damage Inflicted 33050 | . 127 178 . . 4163 . 131 411 1900 363 636 . 2050 60 539 5584 15942 966 Guns 20591 | . . 91 . . . . 35 106 654 363 492 . 1349 60 136 3574 13619 112 Cannons 7567 | . . 58 . . 557 . 96 286 219 . 144 . 701 . 381 2010 2261 854 Explosions 2729 | . 127 28 . . 1572 . . . 1002 . . . . . . . . . Melee 2034 | . . . . . 2034 . . . . . . . . . . . . . Ramming 129 | . . 1 . . . . . 19 25 . . . . . 22 . 62 . Kinetic 17023 | . . 91 . . . . 96 286 306 264 254 . 809 34 155 1732 12142 854 Thermal 11519 | . . 58 . . 985 . 35 . 703 99 382 . 1241 26 288 3852 3738 112 Explosive 2165 | . 127 28 . . 1144 . . . 866 . . . . . . . . . Electromagnetic 180 | . . . . . . . . 106 . . . . . . 74 . . . Impact . | . . . . . . . . . . . . . . . . . . . Slashing 2034 | . . . . . 2034 . . . . . . . . . . . . . Piercing . | . . . . . . . . . . . . . . . . . . . Highest Corruption 27 | . . . . . 7 12 12 15 5 6 6 6 11 . 3 6 26 27 Average Corruption 10 | . . . . . 4 11 12 12 3 5 6 6 8 . 2 3 17 26 Corruption Purged 4 | . . . . . . . . . 4 . . . . . . . . . Corruption Blocked . | . . . . . . . . . . . . . . . . . . . Effects 276 | . . . . . 23 10 11 4 7 15 19 6 20 . 1 16 128 16 Message Errors 45 | . . . . . 4 . 1 1 1 1 3 3 4 . . 2 20 5 Matter Fused 63 | . . . . . 5 4 2 1 2 4 4 1 5 . 1 4 29 1 Heat Flow Errors 31 | . . . . . 4 2 4 . 1 2 2 . 2 . . 3 11 . Energy Discharges 23 | . . . . . 2 1 . 1 1 2 . 1 . . . 2 11 2 Parts Rejected 13 | . . . . . 3 . . . . 1 1 . 1 . . 2 4 1 Parts Fused 2 | . . . . . . . . . . . . . 1 . . . 1 . Data Loss (minor) 31 | . . . . . 3 . 3 1 1 3 5 1 4 . . 1 7 2 Data Loss (major) 11 | . . . . . 2 . . . . 1 1 . . . . 1 6 . Misfires 6 | . . . . . . . 1 . . . 2 . . . . . 3 . Alerts 9 | . . . . . . . . . 1 . . . . . . . 6 2 Misdirections 6 | . . . . . . 2 . . . . . . . . . . 3 1 Weapon Failures 36 | . . . . . . 1 . . . 1 1 . 3 . . 1 27 2 Overload Shots . | . . . . . . . . . . . . . . . . . . . Overflow Damage 1022 | . . 18 . . 451 . . 27 176 . . . . . . 146 104 100 Projectiles 440 | . . 18 . . 45 . . 27 . . . . . . . 146 104 100 Explosions 356 | . . . . . 180 . . . 176 . . . . . . . . . Melee 226 | . . . . . 226 . . . . . . . . . . . . . Knockbacks 33 | . . . . . . . 1 2 3 . 2 . 8 . 1 4 12 . Impact 2 | . . . . . . . . . . . . . . . . . 2 . Kinetic 28 | . . . . . . . 1 2 3 . 2 . 8 . 1 3 8 . Secondary 3 | . . . . . . . . . . . . . . . . 1 2 . Self-Inflicted Damage 330 | . . 27 . . 145 . . . 148 . . . . . 10 . . . Shots 6 | . . 2 . . 2 . . . 2 . . . . . . . . . Rammed 9 | . . 1 . . . . . . . . . . . . 4 . 4 . Targets Rammed 18 | . . 1 . . . . . 2 7 . . . . . 4 . 4 . Kicked 8 | . . . . . . . . 2 6 . . . . . . . . . Crushed 1 | . . . . . . . . . 1 . . . . . . . . . Highest Temperature 570 | . . 10 . . 237 102 244 . 200 158 200 . 266 192 570 389 198 . Average Temperature 100 | . . 7 . . 72 37 102 . 70 96 80 . 106 89 229 115 53 . Received Heat Transfer 2297 | . . 177 60 . 336 . . 9 144 . 15 . 99 90 246 306 725 90 Effects 14 | . . . . . . . . . . . . . 1 . 13 . . . Shutdowns 2 | . . . . . . . . . . . . . . . 2 . . . Energy Bleed 1 | . . . . . . . . . . . . . . . 1 . . . Interference 5 | . . . . . . . . . . . . . 1 . 4 . . . Matter Decay 2 | . . . . . . . . . . . . . . . 2 . . . Damage (minor) 1 | . . . . . . . . . . . . . . . 1 . . . Damage (major) 3 | . . . . . . . . . . . . . . . 3 . . . Siege Activations 21 | . . . . . . . . . . . . . . . . 1 20 . Total Turns 423 | . . . . . . . . . . . . . . . . 16 407 . Longest Duration 57 | . . . . . . . . . . . . . . . . 16 57 . Martial Activations . | . . . . . . . . . . . . . . . . . . . Shielding Activations . | . . . . . . . . . . . . . . . . . . . Robots Disrupted . | . . . . . . . . . . . . . . . . . . . Combat Hostiles . | . . . . . . . . . . . . . . . . . . . Robots Corrupted 1 | . . . . . . . . . . . . . . . . . 1 . Combat Hostiles . | . . . . . . . . . . . . . . . . . . . Parts Fried . | . . . . . . . . . . . . . . . . . . . Impact Corruptions 2 | . . . . . . . . . . . . . . . . . 2 . Robots Melted 3 | . . . . . . . . . . . . . . . . 3 . . Combat Hostiles 1 | . . . . . . . . . . . . . . . . 1 . . Parts Melted 26 | . . . . . . . . . . . 2 . 2 . . 19 3 . Heat Transferred 14067 | . . 74 . . 311 . 148 . 864 111 531 . 1591 37 370 4979 4903 148 Parts Sabotaged . | . . . . . . . . . . . . . . . . . . . Parts Stolen . | . . . . . . . . . . . . . . . . . . . Parts Stripped . | . . . . . . . . . . . . . . . . . . . Power Chain Reactions 3 | . . . . . 2 . . . . . . . . . 1 . . . Alert | -11 -10 -10 -7 -7 -5 -5 -5 -5 -4 -4 -4 -4 -3 -3 -3 -2 -2 -2 ------- Run | Yrd Mat Sub Rec Scr Fac Was Fac DSF Fac Upp Upp Zhi Pro Res Tes Res Qua Frg Maximum Alert Level 5 | . . . . . 1 . . . 2 . . . . . . 2 5 4 Low Security (%) 41 | 100 100 . 100 . 60 100 100 100 34 . . . . 100 100 53 . . Level 1 22 | . . . . . 39 . . . 23 . . . . . . 29 24 . Level 2 9 | . . . . . . . . . 41 . . . . . . 16 10 . Level 3 10 | . . . . . . . . . . . . . . . . . 30 . Level 4 12 | . . . . . . . . . . . . . . . . . 24 100 Level 5 . | . . . . . . . . . . . . . . . . . . . High Security 3 | . . . . . . . . . . . . . . . . . 9 . Max Security . | . . . . . . . . . . . . . . . . . . . Peak Influence 2078 | . 79 . 15 . 273 73 14 52 556 . . . . 95 100 531 2078 1188 Initial 1168 | . . . 7 . . 71 14 . 27 . . . . . 50 56 285 1168 Average 457 | . 36 . 2 . 133 50 1 16 318 . . . . 29 26 223 922 1164 Influence Increases 6269 | . 94 55 15 . 709 10 10 52 855 20 205 . 270 125 197 997 2535 120 Destroy 0b10 Robot/C 3240 | . 60 40 . . 300 . . 20 260 20 180 . 240 . 20 520 1540 40 Destroy 0b10 Robot/NC 265 | . . . . . 85 . 10 . 15 . 5 . . 5 5 55 85 . Destroy Leader 554 | . 10 . . . 62 . . . 74 . 20 . 30 . . 124 214 20 Allied During Kill 96 | . . . . . . . . . 47 . . . . . . 49 . . Successful Hack 36 | . . . . . 12 . . . . . . . . . . . 24 . Select Force Hacks 50 | . . . . . . . . . . . . . . . 50 . . . Disable Machine 540 | . . . . . 45 . . . 150 . . . . 15 15 90 195 30 Destroy Structure 768 | . 9 . . . 130 10 . 2 204 . . . . . 2 114 297 . Partial Spotted 15 | . 15 . . . . . . . . . . . . . . . . . Lose Combat Pursuer 705 | . . 15 15 . 75 . . 30 105 . . . . 105 105 45 180 30 Influence Decreases 5141 | . 85 47 17 15 505 193 31 . 396 430 252 54 268 37 187 588 966 1070 Entered New Map 1679 | . . 5 10 15 . 133 7 . 25 190 20 54 . 2 40 44 224 910 Time Decay 2676 | . 85 12 . . 435 50 24 . 221 230 222 . 146 35 70 404 612 130 Lost Part 586 | . . 30 7 . 70 10 . . 50 10 10 . 122 . 77 40 130 30 Lost Ally 200 | . . . . . . . . . 100 . . . . . . 100 . . Squads Dispatched 57 | . . . . . 8 . . 1 6 . . . 1 2 1 8 28 2 Investigation 12 | . . . . . 4 . . . 2 . . . . 1 1 2 2 . Extermination 10 | . . . . . 2 . . . 1 . . . . . . 2 5 . Reinforcement 15 | . . . . . 2 . . 1 2 . . . . 1 . 1 7 1 Assault 13 | . . . . . . . . . . . . . 1 . . . 11 1 Garrison 7 | . . . . . . . . . 1 . . . . . . 3 3 . Intercept . | . . . . . . . . . . . . . . . . . . . Searches Triggered . | . . . . . . . . . . . . . . . . . . . Construction Impeded 3 | . . . . . . . . . 1 . . . . . . . 2 . Haulers Reinforced 2 | . . . . . 1 . . . . . . . . . . . 1 . Active Scanning Responses . | . . . . . . . . . . . . . . . . . . . Cargo Convoy Interrupts . | . . . . . . . . . . . . . . . . . . . Stealth | -11 -10 -10 -7 -7 -5 -5 -5 -5 -4 -4 -4 -4 -3 -3 -3 -2 -2 -2 --------- Run | Yrd Mat Sub Rec Scr Fac Was Fac DSF Fac Upp Upp Zhi Pro Res Tes Res Qua Frg Distress Signals 10 | . . . . . 1 . . . 4 . . . . 1 . 3 1 . Communications Jammed . | . . . . . . . . . . . . . . . . . . . Distress Signals . | . . . . . . . . . . . . . . . . . . . Times Spotted 300 | . 4 7 2 . 29 6 . 5 28 4 9 . 24 11 18 38 104 11 Peak Tracking Total 13 | . 3 4 2 . 6 6 . 3 10 2 5 . 13 7 11 6 12 8 Tactical Retreats 19 | . . 1 1 . 2 . . 2 2 . . . . 1 2 2 5 1 Traps | -11 -10 -10 -7 -7 -5 -5 -5 -5 -4 -4 -4 -4 -3 -3 -3 -2 -2 -2 ------- Run | Yrd Mat Sub Rec Scr Fac Was Fac DSF Fac Upp Upp Zhi Pro Res Tes Res Qua Frg Traps Triggered 7 | . . . . . 3 . . 1 . . . . . . 2 . 1 . Indirectly . | . . . . . . . . . . . . . . . . . . . Trap Hack Attempts . | . . . . . . . . . . . . . . . . . . . Triggered . | . . . . . . . . . . . . . . . . . . . Disarmed . | . . . . . . . . . . . . . . . . . . . Reprogrammed . | . . . . . . . . . . . . . . . . . . . Reused . | . . . . . . . . . . . . . . . . . . . Traps Extracted . | . . . . . . . . . . . . . . . . . . . Installed . | . . . . . . . . . . . . . . . . . . . Triggered . | . . . . . . . . . . . . . . . . . . . Machines | -11 -10 -10 -7 -7 -5 -5 -5 -5 -4 -4 -4 -4 -3 -3 -3 -2 -2 -2 ---------- Run | Yrd Mat Sub Rec Scr Fac Was Fac DSF Fac Upp Upp Zhi Pro Res Tes Res Qua Frg Machines Disabled 37 | . . . . . 3 . . . 10 . . . . 1 2 6 13 2 Max in Single Turn 3 | . . . . . 1 . . . 3 . . . . 1 1 1 1 1 Machines Repaired . | . . . . . . . . . . . . . . . . . . . Machines Dismantled . | . . . . . . . . . . . . . . . . . . . Machines Sabotaged . | . . . . . . . . . . . . . . . . . . . Overloaded Fab Kills 2 | . . . . . . . . . . . . . . . 2 . . . Hacking | -11 -10 -10 -7 -7 -5 -5 -5 -5 -4 -4 -4 -4 -3 -3 -3 -2 -2 -2 --------- Run | Yrd Mat Sub Rec Scr Fac Was Fac DSF Fac Upp Upp Zhi Pro Res Tes Res Qua Frg Machines Accessed 28 | . . . . 1 7 . 2 . 3 . . 4 . 1 1 3 5 1 Terminals 10 | . . . . . 2 . 1 . 1 . . . . 1 . 2 2 1 Fabricators 2 | . . . . . 1 . . . . . . . . . 1 . . . Repair Stations 3 | . . . . . . . 1 . . . . . . . . . 2 . Recycling Units 7 | . . . . . 4 . . . 2 . . . . . . 1 . . Scanalyzers 1 | . . . . . . . . . . . . . . . . . 1 . Garrison Access . | . . . . . . . . . . . . . . . . . . . Total Hacks 75 | . . . . 9 16 . 5 . 7 . . 17 . 3 1 5 9 3 Successful 38 | . . . . 9 6 . 2 . 1 . . 17 . . 1 1 1 . Failed 37 | . . . . . 10 . 3 . 6 . . . . 3 . 4 8 3 Catastrophic 7 | . . . . . 1 . 1 . 2 . . . . . . 1 2 . Database Lockouts . | . . . . . . . . . . . . . . . . . . . Manual 26 | . . . . . 12 . . . 6 . . . . . 1 1 6 . Terminals 24 | . . . . . 4 . 3 . 2 . . . . 3 . 4 5 3 Fabricators 3 | . . . . . 2 . . . . . . . . . 1 . . . Repair Stations 5 | . . . . . . . 2 . . . . . . . . . 3 . Recycling Units 16 | . . . . . 10 . . . 5 . . . . . . 1 . . Scanalyzers 1 | . . . . . . . . . . . . . . . . . 1 . Garrison Access . | . . . . . . . . . . . . . . . . . . . Terminal Hacks 30 | . . . . 9 2 . 1 . . . . 17 . . . . 1 . Record 6 | . . . . . . . . . . . . 5 . . . . 1 . Part Schematic 4 | . . . . . . . . . . . . 4 . . . . . . Robot Analysis 13 | . . . . 9 . . . . . . . 4 . . . . . . Prototype ID Bank 4 | . . . . . . . . . . . . 4 . . . . . . Open DSF 1 | . . . . . . . 1 . . . . . . . . . . . Emergency Access Points 1 | . . . . . 1 . . . . . . . . . . . . . Registered Components 1 | . . . . . 1 . . . . . . . . . . . . . Fabricator Hacks 1 | . . . . . 1 . . . . . . . . . . . . . Network Status 1 | . . . . . 1 . . . . . . . . . . . . . Repair Station Hacks 1 | . . . . . . . 1 . . . . . . . . . . . Refit 1 | . . . . . . . 1 . . . . . . . . . . . Recycling Unit Hacks . | . . . . . . . . . . . . . . . . . . . Scanalyzer . | . . . . . . . . . . . . . . . . . . . Garrison Access Hacks . | . . . . . . . . . . . . . . . . . . . Unauthorized Hacks 6 | . . . . . 3 . . . 1 . . . . . 1 1 . . Terminals . | . . . . . . . . . . . . . . . . . . . Fabricators 2 | . . . . . 1 . . . . . . . . . 1 . . . Fabnet 1 | . . . . . 1 . . . . . . . . . . . . . Overload 1 | . . . . . . . . . . . . . . . 1 . . . Repair Stations . | . . . . . . . . . . . . . . . . . . . Recycling Units 4 | . . . . . 2 . . . 1 . . . . . . 1 . . Fedlink 2 | . . . . . 2 . . . . . . . . . . . . . Scrapoids 2 | . . . . . . . . . 1 . . . . . . 1 . . Scanalyzers . | . . . . . . . . . . . . . . . . . . . Garrison Access . | . . . . . . . . . . . . . . . . . . . Data Cores Recovered . | . . . . . . . . . . . . . . . . . . . Used . | . . . . . . . . . . . . . . . . . . . Hacking Detections 18 | . . . . . 5 . 2 . 2 . . . . 1 . 2 5 1 Full Trace Events 6 | . . . . . 2 . . . 1 . . . . 1 . 1 1 . Feedback Events 2 | . . . . . . . . . . . . . . . . 1 1 . Corruption 2 | . . . . . . . . . . . . . . . . 1 1 . Feedback Blocked . | . . . . . . . . . . . . . . . . . . . Robot Schematics Acquired 4 | . . . . . . . . . . . . . . . 1 . 3 . Robots Built . | . . . . . . . . . . . . . . . . . . . Authchips . | . . . . . . . . . . . . . . . . . . . Time . | . . . . . . . . . . . . . . . . . . . Total Robot Build Rating . | . . . . . . . . . . . . . . . . . . . Part Schematics Acquired 10 | . . . . . . . . . . . . 4 . . 1 . 5 . Parts Built . | . . . . . . . . . . . . . . . . . . . Authchips . | . . . . . . . . . . . . . . . . . . . Time . | . . . . . . . . . . . . . . . . . . . Total Part Build Rating . | . . . . . . . . . . . . . . . . . . . Part Studies Acquired . | . . . . . . . . . . . . . . . . . . . Parts Repaired . | . . . . . . . . . . . . . . . . . . . Time . | . . . . . . . . . . . . . . . . . . . Parts Recycled . | . . . . . . . . . . . . . . . . . . . Recycled Matter . | . . . . . . . . . . . . . . . . . . . Retrieved Matter . | . . . . . . . . . . . . . . . . . . . Retrieved Components . | . . . . . . . . . . . . . . . . . . . Parts Scanalyzed . | . . . . . . . . . . . . . . . . . . . Part Schematics Acquired . | . . . . . . . . . . . . . . . . . . . Parts Damaged . | . . . . . . . . . . . . . . . . . . . Bothacking | -11 -10 -10 -7 -7 -5 -5 -5 -5 -4 -4 -4 -4 -3 -3 -3 -2 -2 -2 ------------ Run | Yrd Mat Sub Rec Scr Fac Was Fac DSF Fac Upp Upp Zhi Pro Res Tes Res Qua Frg Used RIF Installer . | . . . . . . . . . . . . . . . . . . . Robots Hacked . | . . . . . . . . . . . . . . . . . . . Non-combat . | . . . . . . . . . . . . . . . . . . . Combat . | . . . . . . . . . . . . . . . . . . . Robot Hacks Applied . | . . . . . . . . . . . . . . . . . . . Relay Couplers Released 3 | . . . . . . . . . . . . . . . . . 3 . Programmers 3 | . . . . . . . . . . . . . . . . . 3 . Fabnet Peak Effective % 3 | . . . . . . . . . 3 3 3 3 1 1 1 . . . Robots Rewired . | . . . . . . . . . . . . . . . . . . . Allies Hacked 1 | . . . . . . . . . . . . . . . . 1 . . Hacks Repelled . | . . . . . . . . . . . . . . . . . . . Allies | -11 -10 -10 -7 -7 -5 -5 -5 -5 -4 -4 -4 -4 -3 -3 -3 -2 -2 -2 -------- Run | Yrd Mat Sub Rec Scr Fac Was Fac DSF Fac Upp Upp Zhi Pro Res Tes Res Qua Frg Total Allies 10 | . . . . . . . . . 5 . . . . . . 5 . . Largest Group 5 | . . . . . . . . . 5 . . . . . . 5 . . Highest-Rated Group 320 | . . . . . . . . . 238 . . . . . . 320 . . Highest-Rated Ally 64 | . . . . . . . . . 50 . . . . . . 64 . . Total Orders . | . . . . . . . . . . . . . . . . . . . Ally Attacks 124 | . . . . . . . . . 66 . . . . . . 58 . . Total Damage 2567 | . . . . . . . . . 1167 . . . . . . 1400 . . Kills 9 | . . . . . . . . . 7 . . . . . . 2 . . Allies Corrupted 1 | . . . . . . . . . . . . . . . . 1 . . Allies Melted . | . . . . . . . . . . . . . . . . . . . Intel | -11 -10 -10 -7 -7 -5 -5 -5 -5 -4 -4 -4 -4 -3 -3 -3 -2 -2 -2 ------- Run | Yrd Mat Sub Rec Scr Fac Was Fac DSF Fac Upp Upp Zhi Pro Res Tes Res Qua Frg Active Infowar (turns) 864 | . . . . . 555 59 . . . . . . . 6 95 . . 149 Sensors 250 | . . . . . . . . . . . . . . 6 95 . . 149 Terrain 536 | . . . . . 477 59 . . . . . . . . . . . . Seismic 78 | . . . . . 78 . . . . . . . . . . . . . Robot Analysis Total 13 | . . . . 9 . . . . . . . 4 . . . . . . Derelict Logs Recovered 3 | . . 1 . . . . . . . . 2 . . . . . . . Drone Launches . | . . . . . . . . . . . . . . . . . . . Drone Recoveries . | . . . . . . . . . . . . . . . . . . . Exploration | -11 -10 -10 -7 -7 -5 -5 -5 -5 -4 -4 -4 -4 -3 -3 -3 -2 -2 -2 ------------- Run | Yrd Mat Sub Rec Scr Fac Was Fac DSF Fac Upp Upp Zhi Pro Res Tes Res Qua Frg Turns Passed 9054 | 22 186 605 92 314 1281 114 273 97 465 497 474 246 543 197 197 966 2222 263 Spaces Moved 6231 | 35 136 435 179 610 857 126 190 49 283 379 344 177 315 239 265 478 842 292 Core 2098 | 35 136 310 179 610 60 82 22 . . . . . 12 72 54 162 87 277 Treads 1215 | . . 125 . . . . 104 8 . . . . 28 . . 201 734 15 Legs 1557 | . . . . . . . 2 41 283 379 344 177 275 . . 56 . . Wheels 921 | . . . . . 797 44 . . . . . . . . . 59 21 . Hover 440 | . . . . . . . 62 . . . . . . 167 211 . . . Flight . | . . . . . . . . . . . . . . . . . . . Fastest Speed 40 | 50 50 50 50 50 50 50 50 120 120 120 120 120 50 40 45 50 50 50 Average Speed 102 | 50 70 82 50 50 105 71 126 128 120 120 120 120 136 60 50 124 156 55 Slowest Speed 400 | 50 400 240 50 50 122 112 190 170 120 120 120 120 260 120 111 243 250 160 Overloaded Moves . | . . . . . . . . . . . . . . . . . . . Propulsion Burnouts . | . . . . . . . . . . . . . . . . . . . Robots Hopped . | . . . . . . . . . . . . . . . . . . . Potential Cave-ins . | . . . . . . . . . . . . . . . . . . . Cave-ins Triggered . | . . . . . . . . . . . . . . . . . . . Teleports 1 | . . . . . . . . . . . . . 1 . . . . . Exploration Rate (%) 33 | 3 32 29 47 47 19 81 6 44 9 38 51 60 48 6 22 14 70 13 Regions Visited 18 Branch Regions 10 Pre-discovered Areas 6 | . . 1 . . 1 . . . . . 1 3 . . . . . . Known Exits Taken 4 | . . . . . . . 1 . . . . . . 1 1 1 . . Unknown Exits Taken 11 | 1 1 1 1 1 . . . . 1 1 1 1 1 . . . 1 . Scrap Searched 11 | . . . . 5 . . . . . 2 4 . . . . . . . Spaces Dug 27 | . . 7 . . 15 5 . . . . . . . . . . . . Terrain Destroyed 475 | . 8 47 . . 80 5 . 1 98 1 20 . 12 . 1 27 175 . Melee 17 | . . . . . 15 2 . . . . . . . . . . . . Projectile 246 | . . . . . 1 3 . 1 7 1 20 . 12 . 1 27 173 . AOE 210 | . 8 47 . . 64 . . . 91 . . . . . . . . . Terrain Rammed . | . . . . . . . . . . . . . . . . . . . Walls Destroyed . | . . . . . . . . . . . . . . . . . . . Machines Disabled . | . . . . . . . . . . . . . . . . . . . Actions | -11 -10 -10 -7 -7 -5 -5 -5 -5 -4 -4 -4 -4 -3 -3 -3 -2 -2 -2 --------- Run | Yrd Mat Sub Rec Scr Fac Was Fac DSF Fac Upp Upp Zhi Pro Res Tes Res Qua Frg Total 8069 | 37 224 661 182 618 1092 139 216 67 357 404 377 211 369 281 311 704 1450 369 Wait 732 | . 76 201 . . 32 2 . . 5 5 2 . 8 15 13 30 301 42 Move 6216 | 34 135 434 178 609 857 125 189 49 283 378 343 176 314 238 264 477 841 292 Hop . | . . . . . . . . . . . . . . . . . . . Pick Up 117 | . 5 1 . 4 32 . 4 2 5 2 1 5 . 1 . 25 29 1 Fast Attach 163 | 3 3 2 . 2 22 4 7 2 13 6 5 11 3 10 7 40 19 4 Attach 72 | . 1 2 1 . 8 2 2 . 2 3 1 2 3 6 4 9 20 6 Detach 37 | . 2 . 2 . 2 . 1 . . 1 . . 3 2 5 8 6 5 Swap 47 | . . 1 . . 11 . 1 1 2 . 3 2 . . . 10 16 . Drop 160 | . 1 1 1 3 25 . 8 4 8 2 7 15 . 2 3 36 44 . Fire 418 | . 1 18 . . 29 4 4 8 33 7 15 . 38 7 11 69 155 19 Melee 76 | . . . . . 74 2 . . . . . . . . . . . . Ram 4 | . . . . . . . . . . . . . . . 4 . . . Kick 6 | . . . . . . . . 1 5 . . . . . . . . . Crush 6 | . . 1 . . . . . . 1 . . . . . . . 4 . Escape Stasis 15 | . . . . . . . . . . . . . . . . . 15 . Rewire . | . . . . . . . . . . . . . . . . . . . Trap . | . . . . . . . . . . . . . . . . . . . Miscellaneous . | . . . . . . . . . . . . . . . . . . . Route ------- -11/Scrapyard -10/Materials (discovered 2 exits: [*Min] / [*Sub]) -10/Subcaves -7/Recycling (discovered 2 exits: *Fac / *Scr) -7/Scraptown -5/Factory (discovered 3 exits: *Fac x2 / [*Upp]) -5/Waste -5/Factory -5/DSF -4/Factory -4/Upper Caves -4/Upper Caves -4/Zhirov -3/Proximity Caves -3/Research -3/Testing -2/Research -2/Quarantine (discovered 3 exits: [*Acc] / [*Sec] / *Frg) -2/Protoforge History --------- Turn | Location | Event 10 | -11/Scrapyard | Discovered new exit (range 13) 23 | -11/Scrapyard | Entered Materials 83 | -10/Materials | Discovered new exit (range 12) 204 | -10/Materials | Discovered new exit (range 5) 209 | -10/Materials | Entered Subcaves 210 | -10/Subcaves | Approached by a straggling Scientist 213 | -10/Subcaves | Learned location of Mines (-8) 304 | -10/Subcaves | Build established: Mutant 573 | -10/Subcaves | Ambushed by Subdweller buried in earth 776 | -10/Subcaves | Shifting Twisted Machinery released Piercing Trap 802 | -10/Subcaves | Discovered new exit (range 8) 814 | -10/Subcaves | Entered Recycling 830 | -7/Recycling | Core integrity fell below 50% 855 | -7/Recycling | Lost 4 parts (1p2n1w) 877 | -7/Recycling | Core integrity fell below 20% 885 | -7/Recycling | Discovered new exit (range 16) 894 | -7/Recycling | Scanned before Scraplab entrance 901 | -7/Recycling | Entered Scraplab 905 | -7/Recycling | Discovered new exit (range 2) 906 | -7/Recycling | Entered Scraptown 941 | -7/Scraptown | Visited UFD Registry 941 | -7/Scraptown | Registered with UFD as "Fibercutter" 951 | -7/Scraptown | Visited Cyclists 954 | -7/Scraptown | Entered Cyclist Reading Room 1002 | -7/Scraptown | Visited IN-MT5's Study 1006 | -7/Scraptown | Visited Bundlers 1112 | -7/Scraptown | Visited Research Penetration Think Tank 1139 | -7/Scraptown | Visited Analyses Database 1151 | -7/Scraptown | Visited Derelict Rescue Squad 1158 | -7/Scraptown | Found DRS Beacon 1190 | -7/Scraptown | Met Optimus 1190 | -7/Scraptown | Accepted into 0bPrime 1218 | -7/Scraptown | Discovered new exit (range 3) 1220 | -7/Scraptown | Entered Factory 1220 | -5/Factory | Evolved 10 slots: Propulsion x3, Utility x7 1575 | -5/Factory | Discovered new exit (range 5) 1657 | -5/Factory | Build established: Scavenger-Mutant 1671 | -5/Factory | Loaded intel: 8 recycling unit locations 2303 | -5/Factory | Discovered new exit (range 3) 2411 | -5/Factory | Discovered new exit (range 14) 2488 | -5/Factory | Learned location of Protoforge (-2) 2501 | -5/Factory | Sucked down chute 2501 | -5/Factory | Entered Waste 2516 | -5/Waste | EMP discharged 2516 | -5/Waste | System corruption reached 10% 2552 | -5/Waste | Spotted C-40 Crusher 2556 | -5/Waste | Spotted C-40 Crusher 2560 | -5/Waste | Released all parts (14) 2561 | -5/Waste | Spotted C-40 Crusher 2575 | -5/Waste | Spotted C-40 Crusher 2586 | -5/Waste | Spotted C-40 Crusher 2599 | -5/Waste | Crushed by Compactor (1 part destroyed, 2 dropped) 2604 | -5/Waste | Spotted C-40 Crusher 2607 | -5/Waste | Discovered new exit (range 16) 2615 | -5/Waste | Entered Factory 2888 | -5/Factory | Identified exit to DSF 2888 | -5/Factory | Entered DSF 2893 | -5/DSF | Build established: Mutant 2921 | -5/DSF | Discovered new exit (range 16) 2939 | -5/DSF | Additional patrols routed to DSF 2985 | -5/DSF | Entered Factory 2985 | -4/Factory | Evolved 2 slots: Weapon x2 3229 | -4/Factory | Scrapoid reinforcements arrived 3271 | -4/Factory | Garrison activated, responded to threat 3432 | -4/Factory | Discovered new exit (range 16) 3450 | -4/Factory | Entered Upper Caves 3451 | -4/Upper Caves | Encountered a Warlord checkpoint 3470 | -4/Upper Caves | Lost 4 parts (1p1n2u) 3699 | -4/Upper Caves | Build established: Scavenger-Gunner 3734 | -4/Upper Caves | Lost 3 allies 3934 | -4/Upper Caves | Discovered new exit (range 13) 3947 | -4/Upper Caves | Entered another Upper Caves area 3950 | -4/Upper Caves | Encountered a Warlord checkpoint 4006 | -4/Upper Caves | Learned location of Quarantine (-2) 4208 | -4/Upper Caves | Learned Research emergency access door positions 4377 | -4/Upper Caves | Discovered new exit (range 8) 4421 | -4/Upper Caves | Entered Zhirov 4421 | -4/Zhirov | Discovered new exit (range 3) 4445 | -4/Zhirov | Met Zhirov 4468 | -4/Zhirov | Learned location of Testing (-3) 4468 | -4/Zhirov | Learned location of Command (-1) 4479 | -4/Zhirov | Zhirov requested help retrieving the SGEMP Prototype 4500 | -4/Zhirov | Found Alien Artifact 4500 | -4/Zhirov | Identified Integrated Reactor 4500 | -4/Zhirov | Installed Integrated Reactor, increased core energy generation (+10) 4603 | -4/Zhirov | Found Alien Artifact 4667 | -4/Zhirov | Entered Proximity Caves 4951 | -3/Proximity Caves | System corruption reached 10% 4969 | -3/Proximity Caves | Attracted the attention of an 0b10 outpost 5004 | -3/Proximity Caves | Identified Transdimensional Reconstructor 5004 | -3/Proximity Caves | Warped through subspace 5020 | -3/Proximity Caves | Destroyed 8 combat bots 5025 | -3/Proximity Caves | Lost 3 parts (1n2u) 5090 | -3/Proximity Caves | Lost 4 parts (1p2n1w) 5180 | -3/Proximity Caves | Discovered new exit (range 13) 5210 | -3/Proximity Caves | Entered Research 5210 | -3/Research | Evolved 2 slots: Power x1, Utility x1 5231 | -3/Research | Lost 7 parts (1n3u3w) 5391 | -3/Research | Discovered new exit (range 10) 5406 | -3/Research | Identified exit to Testing 5407 | -3/Research | Entered Testing 5466 | -3/Testing | Spotted Alpha 7 5522 | -3/Testing | Found Prototype Ballistic Cannon 5522 | -3/Testing | Identified Omega Cannon 5578 | -3/Testing | Lost 8 parts (1p2n3u2w) 5586 | -3/Testing | Core integrity fell below 50% 5597 | -3/Testing | Discovered new exit (range 16) 5600 | -3/Testing | Spotted PP-QMZM2B0559 5603 | -3/Testing | Core integrity fell below 20% 5604 | -3/Testing | Identified exit to Research 5604 | -3/Testing | Entered Research 5604 | -2/Research | Evolved 2 slots: Utility x1, Weapon x1 5628 | -2/Research | Lost 4 parts (1n3u) 5692 | -2/Research | Scrapoid reinforcements arrived 5753 | -2/Research | Lost 4 allies 5769 | -2/Research | Destroyed 7 combat bots 5787 | -2/Research | Found Scrap Suit 6024 | -2/Research | Spotted B-90 Cyclops 6030 | -2/Research | Attached CPS modules to B-90 Cyclops. 6038 | -2/Research | Destroyed B-90 Cyclops 6117 | -2/Research | Found Quantum Capacitor 6353 | -2/Research | Garrison activated, responded to threat 6516 | -2/Research | Discovered new exit (range 9) 6567 | -2/Research | Identified exit to Quarantine 6570 | -2/Research | Entered Quarantine 6874 | -2/Quarantine | System corruption reached 10% 6875 | -2/Quarantine | Garrison activated, responded to threat 7182 | -2/Quarantine | Scanned by Researcher 7315 | -2/Quarantine | Build established: Scavenger-Tank 7375 | -2/Quarantine | Found Alien Reactor 7511 | -2/Quarantine | Attached CPS modules to Q714-m. 7634 | -2/Quarantine | Found Prototype Device 7634 | -2/Quarantine | Identified Adv. Kinecellerator 7820 | -2/Quarantine | First assault squad dispatched 7947 | -2/Quarantine | Discovered new exit (range 11) 8129 | -2/Quarantine | Found Alien Artifact 8251 | -2/Quarantine | Found Alien Artifact 8508 | -2/Quarantine | Found Alien Artifact 8508 | -2/Quarantine | Identified Phase Armor 8579 | -2/Quarantine | High security lockdown imminent 8614 | -2/Quarantine | Destroyed 9 combat bots 8659 | -2/Quarantine | High security lockdown engaged 8748 | -2/Quarantine | Released all parts (13) 8755 | -2/Quarantine | Spotted Fortress 8770 | -2/Quarantine | Core integrity fell below 50% 8779 | -2/Quarantine | Lost 5 parts (2n2u1w) 8790 | -2/Quarantine | Discovered new exit (range 6) 8790 | -2/Quarantine | Discovered new exit (range 5) 8792 | -2/Quarantine | Entered Protoforge 8841 | -2/Protoforge | Superfortress began startup sequence 9031 | -2/Protoforge | Build established: Mutant 9042 | -2/Protoforge | First assault squad dispatched 9044 | -2/Protoforge | Spotted AP7-3 9045 | -2/Protoforge | Spotted AP7-3 9050 | -2/Protoforge | Core integrity fell below 20% 9055 | -2/Protoforge | Destroyed by H-88 Terminator with KE Penetrator Last Messages --------------- 08980_ Penetrated by Slug. 08992_ J&OH BGDOF==CSJF5N 09010_ LI04HF%SCN%S CNXXXNO7< W 09029_ BHUP2USCWYGQPDHK5PYW1S1JB%EUZ 09042_ ALERT: Unidentified disturbance in Zone 1X, assault force dispatched. 09045_ System corrupted: IFF burst signal emitted. 09045_ Med. Treads destroyed. 09045_ Acquired 10 matter. 09046_ Penetrated by Slug. 09046_ Adv. Sensor Array destroyed. 09046_ Penetrated by Slug. 09046_ Slug penetrates U-05 Engineer. 09049_ Penetrated by Slug. 09051_ K-01 Serf cleans the Machine. 09052_ Slug penetrates Wall. 09052_ Penetrated by Slug. 09053_ K-01 Serf cleans the Machine. 09055_ Penetrated by Slug. Map ----- +----------------------------------------------------+ | ?????????????????????????????????????????????????? | | ?????????????????????????????????????????????????? | | ?????????????????????????????????????????????????? | | ?????????????????????????????????????????????????? | | ?????????????????????????????????????????????????? | | ?????????????????????????????????????????????????? | | ?????????????????????????????????????????????????? | | ?????????????????????????????????????????????????? | | ?????????????????????????????????????????????????? | | ?????????????????????????????????????????????????? | | ????????????????????? " ?????????????????????? | | ??????????????????? " "???????????????????? | | ?????????????????# """"" "????????????????? | | ?????????????????# " "" ??????????????? | | ?????????????????# """" "?????????????? | | ?????????????????# """" ""????????????? | | ?????????????????# " ???????????? | | ?????????????????# "" " ???????????? | | ?????????????????# " ""??????????? | | ?????????????????# " "" """??????????? | | ?????????????????# """"" " """"??????????? | | ?????????????????# "" "" " """""?????????? | | ?????????????????# "" "k "" """""?????????? | | ?????????????????# k "" " """""""????????? | | ?????????????????# k "" " """""""????????? | | ?????????????????# " @ """""""????????? | | ?????????????????# "" """""""????????? | | ?????????????###?# ""???????""""""????????? | | #####+######## ### " "" ???????????????? | | + """ " "??????????????? | | + " """ """"" " ""?????????????? | | + "" " ""?????????????? | | ########### ### " ??????????????? | | #?????????###?# "?????????????? | | #?????????????# """"""" "" ??????????????? | | #?????????????# h """ " " ??????????????? | | #?????????????# " " ??????????????? | | #?????????????# h "" ???????????????? | | #?????????????# "" "" "????????????????? | | #?????????????# "" w"" ?????????????????? | | ##########????# "" """ ??????????????????? | | # #????# " " ???????????????????? | | # "" #????# " ????????????????????? | | # "" " #????? " "??????????????????????? | | # " #????? "?"????????????????????????? | | + " " #????? ????????????????????????????? | | # #????????????????????????????????????? | | # #????????????????????????????????????? | | # #????????????????????????????????????? | | # #????????????????????????????????????? | +----------------------------------------------------+ Best States ------------- Heat Dissipation 197 Coolant Potential 100 Energy Generation 55 Energy Capacity 665 Matter Stores 300 Matter Capacity 300 Sight Range 16 Robot Scan Range 16 Terrain Scan Range 20 Terrain Scan Density 10 Armor Coverage 1800 Resistance: KI 25 Resistance: TH 30 Resistance: EX 25 Core Shielding 30 Weapon Shielding 66 Weapon Cycling 25 Phase Shifting 10 Evasion (%) 80 Targeting Accuracy 12 Launcher Accuracy 30 Target Analysis 8 Core Analysis 6 Armor Integrity Analysis 40 Recoil Reduction 5 Matter Filtering 50 Kinecelleration 50 Salvage Targeting 4 Offensive Hacking 10 Defensive Hacking 14 Item Schematics ----------------- Assault Drone Bay | -4/Zhirov | Free Exp. Heat Sink | -4/Zhirov | Free Exp. Optical Array | -4/Zhirov | Free Imp. Arc Thrower | -4/Zhirov | Free Adv. Dynamic Insulation System | -3/Testing | Archive Com. Linear Accelerator | -2/Quarantine | Archive Imp. Matter Neutralizer | -2/Quarantine | Archive Prc. Phase Gun | -2/Quarantine | Archive Quantum Shading Machine | -2/Quarantine | Archive Prc. Energy Filter | -2/Quarantine | Archive Robot Schematics ------------------ A-15 Conveyor | -3/Testing | Archive H-77 Assassin | -2/Quarantine | Archive K-01 Serf | -2/Quarantine | Archive A-27 Freighter | -2/Quarantine | Archive Fabricated ------------ Nothing Repaired ---------- Nothing Studied --------- None Alien Tech Used ----------------- Integrated Reactor Transdimensional Reconstructor Phase Armor Achievements -------------- None Challenges ------------ None Game ------ Seed SystemTachyonBlaster Manual? 0 Play Time 01:27:29 Cumulative 394.2 hours Start 2025.11.10 @ 13:05:00 End 2025.11.10 @ 14:35:18 Sessions 1 Manual Loads 0 Difficulty Rogue Special Mode None Game No. 365 Rogue 365 Adventurer 0 Explorer 0 Win Type - Total 3 Types 2/1/0/0/0/0/0/0/0/0 Lore% 84 Gallery% 83 Achievement% 62 Wizard Run 0 Options --------- Layout 1 ASCII 0 Keyboard 0 Movement Numpad Keybinds 0 Fullscreen 1 Font 24/Smallcaps Map View 50x35 Zoom Use 0% Tactical HUD 1 Map Filters NONE Filters NONE Steam 1 RUN: 1702ff3b-6a15-4056-a2ce-aa379d1d7920